[Event "January 9 Late 2024"]
[Site "https://www.chess.com"]
[Date "2024.01.09"]
[Round "5"]
[White "Kleiman, Jake"]
[Black "Matlakov, Maxim"]
[Result "0-1"]
[Board "37"]
[TimeControl "180+1"]
[WhiteFideId "2020041"]
[BlackFideId "4168003"]
[WhiteElo "2672"]
[BlackElo "2928"]
[WhiteTeam "USA"]
[BlackTeam "RUS"]
[WhiteClock "0:00:11"]
[BlackClock "0:00:08"]

1. e4 {[%clk 0:03:00]}  e5 {[%clk 0:02:56]} 2. Nf3 {[%clk 0:03:00]}  Nc6 {[%clk 0:02:56]} 3. Bc4 {[%clk 0:03:01]}  Nf6 {[%clk 0:02:54]} 4. d3 {[%clk 0:03:02]}  Be7 {[%clk 0:02:54]} 5. O-O {[%clk 0:03:01]}  O-O {[%clk 0:02:54]} 6. Re1 {[%clk 0:03:02]}  d6 {[%clk 0:02:54]} 7. a4 {[%clk 0:03:02]}  Be6 {[%clk 0:02:49]} 8. Nc3 {[%clk 0:03:02]}  a5 {[%clk 0:02:47]} 9. Nd5 {[%clk 0:03:01]}  Bxd5 {[%clk 0:02:42]} 10. exd5 {[%clk 0:03:00]}  Nb4 {[%clk 0:02:41]} 11. d4 {[%clk 0:03:00]}  Nbxd5 {[%clk 0:02:32]} 12. dxe5 {[%clk 0:02:58]}  dxe5 {[%clk 0:02:33]} 13. Nxe5 {[%clk 0:02:58]}  c6 {[%clk 0:02:33]} 14. c3 {[%clk 0:02:54]}  Qc7 {[%clk 0:02:31]} 15. Bg5 {[%clk 0:02:44]}  Bd6 {[%clk 0:02:28]} 16. Nf3 {[%clk 0:02:37]}  h6 {[%clk 0:02:26]} 17. Bh4 {[%clk 0:02:20]}  Rfe8 {[%clk 0:02:26]} 18. Qc2 {[%clk 0:02:17]}  Qb6 {[%clk 0:02:15]} 19. Nd4 {[%clk 0:02:10]}  Qc7 {[%clk 0:01:58]} 20. Bxf6 {[%clk 0:01:42]}  Nxf6 {[%clk 0:01:58]} 21. g3 {[%clk 0:01:41]}  Bc5 {[%clk 0:01:48]} 22. Nb3 {[%clk 0:00:51]}  Bb6 {[%clk 0:01:47]} 23. Qf5 {[%clk 0:00:51]}  Re7 {[%clk 0:01:42]} 24. Kg2 {[%clk 0:00:41]}  Rae8 {[%clk 0:01:37]} 25. Rxe7 {[%clk 0:00:41]}  Rxe7 {[%clk 0:01:21]} 26. Rd1 {[%clk 0:00:42]}  h5 {[%clk 0:01:19]} 27. h3 {[%clk 0:00:41]}  Kf8 {[%clk 0:01:00]} 28. Nd4 {[%clk 0:00:41]}  Re5 {[%clk 0:00:52]} 29. Qf3 {[%clk 0:00:36]}  Qc8 {[%clk 0:00:40]} 30. Bb3 {[%clk 0:00:28]}  Bd8 {[%clk 0:00:32]} 31. Rd3 {[%clk 0:00:25]}  g6 {[%clk 0:00:30]} 32. Re3 {[%clk 0:00:25]}  Rxe3 {[%clk 0:00:21]} 33. Qxe3 {[%clk 0:00:25]}  Kg7 {[%clk 0:00:22]} 34. Qf3 {[%clk 0:00:23]}  Qd7 {[%clk 0:00:21]} 35. Bc4 {[%clk 0:00:21]}  Bb6 {[%clk 0:00:21]} 36. Nb3 {[%clk 0:00:20]}  Qe7 {[%clk 0:00:19]} 37. Qe2 {[%clk 0:00:19]}  Qd6 {[%clk 0:00:19]} 38. Qd3 {[%clk 0:00:19]}  Qe5 {[%clk 0:00:19]} 39. Qe2 {[%clk 0:00:18]}  Qf5 {[%clk 0:00:19]} 40. Kg1 {[%clk 0:00:16]}  Ne4 {[%clk 0:00:16]} 41. Bd3 {[%clk 0:00:13]}  Qxf2+ {[%clk 0:00:12]} 42. Qxf2 {[%clk 0:00:13]}  Nxf2 {[%clk 0:00:13]} 43. Bc2 {[%clk 0:00:10]}  Nd3+ {[%clk 0:00:13]} 44. Kf1 {[%clk 0:00:10]}  Nxb2 {[%clk 0:00:13]} 45. Nd2 {[%clk 0:00:11]}  Be3 {[%clk 0:00:12]} 46. Ne4 {[%clk 0:00:11]}  b5 {[%clk 0:00:10]} 47. axb5 {[%clk 0:00:10]}  cxb5 {[%clk 0:00:11]} 48. Bb3 {[%clk 0:00:10]}  a4 {[%clk 0:00:10]} 49. Ba2 {[%clk 0:00:11]}  Nc4 {[%clk 0:00:09]} 50. Ke2 {[%clk 0:00:10]}  Bb6 {[%clk 0:00:09]} 51. Kd3 {[%clk 0:00:09]}  Ne5+ {[%clk 0:00:08]} 52. Ke2 {[%clk 0:00:10]}  Bc7 {[%clk 0:00:07]} 53. g4 {[%clk 0:00:10]}  hxg4 {[%clk 0:00:07]} 54. hxg4 {[%clk 0:00:11]}  Nxg4 {[%clk 0:00:08]} 55. Bd5 {[%clk 0:00:10]}  Nf6 {[%clk 0:00:08]} 56. Nxf6 {[%clk 0:00:10]}  Kxf6 {[%clk 0:00:09]} 57. Bc6 {[%clk 0:00:10]}  a3 {[%clk 0:00:09]} 58. Bd5 {[%clk 0:00:10]}  Ke7 {[%clk 0:00:09]} 59. Kd3 {[%clk 0:00:10]}  f5 {[%clk 0:00:09]} 60. Bb3 {[%clk 0:00:11]}  g5 {[%clk 0:00:08]} 0-1

[Event "January 9 Late 2024"]
[Site "https://www.chess.com"]
[Date "2024.01.09"]
[Round "5"]
[White "Sherman, Raem"]
[Black "Ibarra Jerez, Jose Carlos"]
[Result "1-0"]
[Board "40"]
[TimeControl "180+1"]
[WhiteFideId "2822288"]
[BlackFideId "2226332"]
[WhiteElo "2656"]
[BlackElo "2923"]
[WhiteTeam "ISR"]
[BlackTeam "ESP"]
[WhiteClock "0:00:22"]
[BlackClock "0:00:00"]

1. e4 {[%clk 0:03:00]}  c5 {[%clk 0:02:59]} 2. Nf3 {[%clk 0:03:00]}  Nc6 {[%clk 0:02:58]} 3. d4 {[%clk 0:03:01]}  cxd4 {[%clk 0:02:58]} 4. Nxd4 {[%clk 0:03:02]}  e5 {[%clk 0:02:56]} 5. Nb5 {[%clk 0:03:02]}  d6 {[%clk 0:02:57]} 6. N1c3 {[%clk 0:03:03]}  a6 {[%clk 0:02:55]} 7. Na3 {[%clk 0:03:03]}  Be6 {[%clk 0:02:55]} 8. Nc4 {[%clk 0:03:03]}  Rb8 {[%clk 0:02:55]} 9. Ne3 {[%clk 0:03:02]}  Nf6 {[%clk 0:02:52]} 10. Bd3 {[%clk 0:02:56]}  g6 {[%clk 0:02:50]} 11. O-O {[%clk 0:02:55]}  Bg7 {[%clk 0:02:51]} 12. Ncd5 {[%clk 0:02:56]}  O-O {[%clk 0:02:51]} 13. a4 {[%clk 0:02:52]}  Nd7 {[%clk 0:02:42]} 14. c3 {[%clk 0:02:47]}  Bh6 {[%clk 0:02:16]} 15. Nc4 {[%clk 0:02:25]}  Bxc1 {[%clk 0:02:11]} 16. Rxc1 {[%clk 0:02:23]}  Bxd5 {[%clk 0:01:55]} 17. exd5 {[%clk 0:02:19]}  Ne7 {[%clk 0:01:56]} 18. Nxd6 {[%clk 0:02:17]}  Nc5 {[%clk 0:01:46]} 19. Ne4 {[%clk 0:02:14]}  Nxe4 {[%clk 0:01:01]} 20. Bxe4 {[%clk 0:02:15]}  f5 {[%clk 0:01:01]} 21. d6 {[%clk 0:02:15]}  Nc8 {[%clk 0:00:54]} 22. Qd5+ {[%clk 0:01:40]}  Kg7 {[%clk 0:00:25]} 23. Qxe5+ {[%clk 0:01:39]}  Qf6 {[%clk 0:00:26]} 24. Qxf6+ {[%clk 0:01:34]}  Kxf6 {[%clk 0:00:26]} 25. d7 {[%clk 0:01:31]}  Nb6 {[%clk 0:00:26]} 26. Rfd1 {[%clk 0:01:21]}  Ke7 {[%clk 0:00:21]} 27. Bf3 {[%clk 0:01:11]}  Nxa4 {[%clk 0:00:16]} 28. b4 {[%clk 0:01:05]}  Rfd8 {[%clk 0:00:13]} 29. Re1+ {[%clk 0:01:00]}  Kf6 {[%clk 0:00:13]} 30. Bd5 {[%clk 0:00:49]}  Rxd7 {[%clk 0:00:11]} 31. Bb3 {[%clk 0:00:49]}  Nb2 {[%clk 0:00:08]} 32. Rb1 {[%clk 0:00:44]}  Nd3 {[%clk 0:00:07]} 33. Re6+ {[%clk 0:00:45]}  Kg7 {[%clk 0:00:07]} 34. Rd1 {[%clk 0:00:45]}  Rbd8 {[%clk 0:00:07]} 35. g3 {[%clk 0:00:40]}  Kf8 {[%clk 0:00:03]} 36. h4 {[%clk 0:00:34]}  a5 {[%clk 0:00:04]} 37. bxa5 {[%clk 0:00:31]}  Nc5 {[%clk 0:00:04]} 38. Rxd7 {[%clk 0:00:32]}  Rxd7 {[%clk 0:00:04]} 39. Rb6 {[%clk 0:00:33]}  Rd3 {[%clk 0:00:02]} 40. Bc4 {[%clk 0:00:23]}  Rxc3 {[%clk 0:00:02]} 41. Bd5 {[%clk 0:00:24]}  Rc1+ {[%clk 0:00:02]} 42. Kg2 {[%clk 0:00:23]}  Ra1 {[%clk 0:00:03]} 43. Rb5 {[%clk 0:00:21]}  Rc1 {[%clk 0:00:01]} 44. Bxb7 {[%clk 0:00:21]}  Nxb7 {[%clk 0:00:00]} 45. Rxb7 {[%clk 0:00:22]} 1-0

[Event "January 9 Late 2024"]
[Site "https://www.chess.com"]
[Date "2024.01.09"]
[Round "5"]
[White "Tristan, Leonardo"]
[Black "Grigoriants, Sergey"]
[Result "0-1"]
[Board "46"]
[TimeControl "180+1"]
[WhiteFideId "113816"]
[BlackFideId "4130804"]
[WhiteElo "2762"]
[BlackElo "2885"]
[WhiteTeam "ARG"]
[BlackTeam "HUN"]
[WhiteClock "0:00:11"]
[BlackClock "0:00:14"]

1. d4 {[%clk 0:03:00]}  Nf6 {[%clk 0:02:25]} 2. Nf3 {[%clk 0:03:00]}  d5 {[%clk 0:02:25]} 3. Bf4 {[%clk 0:03:00]}  c5 {[%clk 0:02:23]} 4. e3 {[%clk 0:03:01]}  Nc6 {[%clk 0:02:23]} 5. c3 {[%clk 0:03:01]}  Qb6 {[%clk 0:02:20]} 6. Qc2 {[%clk 0:03:01]}  g6 {[%clk 0:02:19]} 7. Nbd2 {[%clk 0:03:00]}  Bf5 {[%clk 0:02:18]} 8. dxc5 {[%clk 0:02:59]}  Qxc5 {[%clk 0:02:13]} 9. Qb3 {[%clk 0:03:00]}  Na5 {[%clk 0:02:08]} 10. Qb4 {[%clk 0:02:15]}  Qxb4 {[%clk 0:01:42]} 11. cxb4 {[%clk 0:02:15]}  Nc6 {[%clk 0:01:43]} 12. b5 {[%clk 0:02:16]}  Nb4 {[%clk 0:01:35]} 13. Nd4 {[%clk 0:02:14]}  Bd3 {[%clk 0:01:18]} 14. a3 {[%clk 0:01:38]}  Bxf1 {[%clk 0:01:17]} 15. axb4 {[%clk 0:01:38]}  Bxg2 {[%clk 0:01:17]} 16. Rg1 {[%clk 0:01:38]}  Bh3 {[%clk 0:01:17]} 17. b6 {[%clk 0:01:38]}  a6 {[%clk 0:01:16]} 18. Nb5 {[%clk 0:00:55]}  Rc8 {[%clk 0:00:57]} 19. Nc7+ {[%clk 0:00:55]}  Kd7 {[%clk 0:00:53]} 20. Nxa6 {[%clk 0:00:55]}  Kc6 {[%clk 0:00:30]} 21. Bc7 {[%clk 0:00:12]}  bxa6 {[%clk 0:00:25]} 22. Nb3 {[%clk 0:00:09]}  Rxc7 {[%clk 0:00:20]} 23. bxc7 {[%clk 0:00:08]}  Kxc7 {[%clk 0:00:20]} 24. Rxa6 {[%clk 0:00:08]}  Bc8 {[%clk 0:00:15]} 25. Ra7+ {[%clk 0:00:08]}  Kb8 {[%clk 0:00:14]} 26. Ra5 {[%clk 0:00:05]}  e6 {[%clk 0:00:15]} 27. Nc5 {[%clk 0:00:05]}  Ne4 {[%clk 0:00:13]} 28. Ke2 {[%clk 0:00:03]}  Nxc5 {[%clk 0:00:03]} 29. bxc5 {[%clk 0:00:04]}  Kc7 {[%clk 0:00:04]} 30. b4 {[%clk 0:00:04]}  Bb7 {[%clk 0:00:04]} 31. Rc1 {[%clk 0:00:03]}  Be7 {[%clk 0:00:03]} 32. b5 {[%clk 0:00:03]}  Bxc5 {[%clk 0:00:04]} 33. b6+ {[%clk 0:00:02]}  Kxb6 {[%clk 0:00:03]} 34. Raxc5 {[%clk 0:00:02]}  Ba6+ {[%clk 0:00:03]} 35. Kf3 {[%clk 0:00:01]}  Bc4 {[%clk 0:00:04]} 36. R5xc4 {[%clk 0:00:02]}  dxc4 {[%clk 0:00:05]} 37. Rxc4 {[%clk 0:00:02]}  Rd8 {[%clk 0:00:04]} 38. Kg4 {[%clk 0:00:02]}  Rd5 {[%clk 0:00:05]} 39. Rf4 {[%clk 0:00:03]}  h5+ {[%clk 0:00:05]} 40. Kg3 {[%clk 0:00:02]}  Rf5 {[%clk 0:00:05]} 41. Rxf5 {[%clk 0:00:03]}  exf5 {[%clk 0:00:06]} 42. Kf4 {[%clk 0:00:03]}  f6 {[%clk 0:00:06]} 43. e4 {[%clk 0:00:01]}  fxe4 {[%clk 0:00:07]} 44. Kxe4 {[%clk 0:00:02]}  Kc6 {[%clk 0:00:07]} 45. f4 {[%clk 0:00:02]}  Kd6 {[%clk 0:00:08]} 46. h4 {[%clk 0:00:02]}  Ke6 {[%clk 0:00:07]} 47. f5+ {[%clk 0:00:03]}  gxf5+ {[%clk 0:00:07]} 48. Kf4 {[%clk 0:00:04]}  Ke7 {[%clk 0:00:07]} 49. Kxf5 {[%clk 0:00:04]}  Kf7 {[%clk 0:00:08]} 50. Kf4 {[%clk 0:00:04]}  Ke6 {[%clk 0:00:09]} 51. Ke4 {[%clk 0:00:04]}  f5+ {[%clk 0:00:09]} 52. Kf4 {[%clk 0:00:04]}  Kf6 {[%clk 0:00:10]} 53. Kf3 {[%clk 0:00:04]}  Ke5 {[%clk 0:00:11]} 54. Ke3 {[%clk 0:00:04]}  f4+ {[%clk 0:00:11]} 55. Kd3 {[%clk 0:00:05]}  Kf5 {[%clk 0:00:11]} 56. Kd4 {[%clk 0:00:02]}  Kg4 {[%clk 0:00:11]} 57. Ke4 {[%clk 0:00:03]}  f3 {[%clk 0:00:12]} 58. Ke3 {[%clk 0:00:04]}  Kg3 {[%clk 0:00:13]} 59. Ke4 {[%clk 0:00:04]}  f2 {[%clk 0:00:13]} 60. Kf5 {[%clk 0:00:05]}  Kxh4 {[%clk 0:00:13]} 61. Kf4 {[%clk 0:00:05]}  f1=Q+ {[%clk 0:00:14]} 62. Ke3 {[%clk 0:00:06]}  Kg3 {[%clk 0:00:14]} 63. Kd4 {[%clk 0:00:07]}  h4 {[%clk 0:00:15]} 64. Kc5 {[%clk 0:00:08]}  h3 {[%clk 0:00:16]} 65. Kb6 {[%clk 0:00:09]}  h2 {[%clk 0:00:16]} 66. Ka7 {[%clk 0:00:10]}  h1=Q {[%clk 0:00:17]} 67. Kb8 {[%clk 0:00:10]}  Qb5+ {[%clk 0:00:15]} 68. Ka7 {[%clk 0:00:11]}  Qhb7# {[%clk 0:00:14]} 0-1

[Event "January 9 Late 2024"]
[Site "https://www.chess.com"]
[Date "2024.01.09"]
[Round "5"]
[White "Chan, Yi Ren Daniel"]
[Black "Silva, Kaua Marques"]
[Result "1-0"]
[Board "49"]
[TimeControl "180+1"]
[WhiteFideId "5801583"]
[BlackFideId "22701168"]
[WhiteElo "2858"]
[BlackElo "2582"]
[WhiteTeam "SGP"]
[BlackTeam "BRA"]
[WhiteClock "0:00:58"]
[BlackClock "0:00:00"]

1. e4 {[%clk 0:02:53]}  e6 {[%clk 0:02:59]} 2. Nf3 {[%clk 0:02:54]}  d5 {[%clk 0:03:00]} 3. Nc3 {[%clk 0:02:54]}  Nf6 {[%clk 0:02:54]} 4. e5 {[%clk 0:02:54]}  Nfd7 {[%clk 0:02:54]} 5. d4 {[%clk 0:02:55]}  c5 {[%clk 0:02:54]} 6. dxc5 {[%clk 0:02:56]}  Nc6 {[%clk 0:02:51]} 7. Bf4 {[%clk 0:02:56]}  Bxc5 {[%clk 0:02:47]} 8. Bd3 {[%clk 0:02:57]}  h6 {[%clk 0:02:43]} 9. h4 {[%clk 0:02:56]}  a6 {[%clk 0:02:39]} 10. Qe2 {[%clk 0:02:53]}  b5 {[%clk 0:02:37]} 11. O-O-O {[%clk 0:02:53]}  Qa5 {[%clk 0:02:36]} 12. Kb1 {[%clk 0:02:37]}  Nb4 {[%clk 0:02:20]} 13. a3 {[%clk 0:02:32]}  Nxd3 {[%clk 0:02:20]} 14. Rxd3 {[%clk 0:02:31]}  Qb6 {[%clk 0:02:14]} 15. g4 {[%clk 0:02:09]}  Bb7 {[%clk 0:02:12]} 16. Rhd1 {[%clk 0:02:03]}  Bxf2 {[%clk 0:02:01]} 17. g5 {[%clk 0:01:58]}  hxg5 {[%clk 0:01:57]} 18. Bxg5 {[%clk 0:01:56]}  Bc5 {[%clk 0:01:52]} 19. Rf1 {[%clk 0:01:51]}  Qc7 {[%clk 0:01:36]} 20. Qh2 {[%clk 0:01:44]}  Bc6 {[%clk 0:01:22]} 21. Qf4 {[%clk 0:01:43]}  f6 {[%clk 0:01:12]} 22. exf6 {[%clk 0:01:12]}  Qxf4 {[%clk 0:01:13]} 23. fxg7 {[%clk 0:01:11]}  Qf8 {[%clk 0:00:40]} 24. gxf8=Q+ {[%clk 0:01:11]}  Rxf8 {[%clk 0:00:29]} 25. Re1 {[%clk 0:01:11]}  Kf7 {[%clk 0:00:25]} 26. Be3 {[%clk 0:01:11]}  Bxe3 {[%clk 0:00:18]} 27. Rdxe3 {[%clk 0:01:12]}  Rh8 {[%clk 0:00:03]} 28. Rxe6 {[%clk 0:01:11]}  Rac8 {[%clk 0:00:01]} 29. Re7+ {[%clk 0:01:10]}  Kf8 {[%clk 0:00:01]} 30. Nd4 {[%clk 0:00:57]}  Rh6 {[%clk 0:00:01]} 31. Nxc6 {[%clk 0:00:57]}  Rcxc6 {[%clk 0:00:00]} 32. Rxd7 {[%clk 0:00:58]} 1-0

[Event "January 9 Late 2024"]
[Site "https://www.chess.com"]
[Date "2024.01.10"]
[Round "5"]
[White "Remizov, Yaroslav"]
[Black "Kandil, Ahmed"]
[Result "1-0"]
[Board "51"]
[TimeControl "180+1"]
[WhiteFideId "34134015"]
[BlackFideId "10628401"]
[WhiteElo "2848"]
[BlackElo "2574"]
[WhiteTeam "RUS"]
[BlackTeam "EGY"]
[WhiteClock "0:00:29"]
[BlackClock "0:00:25"]

1. e4 {[%clk 0:02:58]}  e5 {[%clk 0:02:59]} 2. Nf3 {[%clk 0:02:56]}  Nc6 {[%clk 0:02:59]} 3. Nc3 {[%clk 0:02:49]}  Nf6 {[%clk 0:02:58]} 4. Be2 {[%clk 0:02:50]}  Be7 {[%clk 0:02:55]} 5. d4 {[%clk 0:02:50]}  exd4 {[%clk 0:02:52]} 6. Nxd4 {[%clk 0:02:51]}  O-O {[%clk 0:02:52]} 7. Nxc6 {[%clk 0:02:50]}  dxc6 {[%clk 0:02:50]} 8. Qxd8 {[%clk 0:02:51]}  Rxd8 {[%clk 0:02:50]} 9. Bf4 {[%clk 0:02:51]}  Ne8 {[%clk 0:02:45]} 10. O-O {[%clk 0:02:40]}  Be6 {[%clk 0:02:44]} 11. Rfd1 {[%clk 0:02:22]}  Nd6 {[%clk 0:02:38]} 12. Rd2 {[%clk 0:01:57]}  Nc4 {[%clk 0:02:05]} 13. Rxd8+ {[%clk 0:01:41]}  Rxd8 {[%clk 0:02:03]} 14. Bxc7 {[%clk 0:01:31]}  Rd2 {[%clk 0:02:02]} 15. Bd3 {[%clk 0:01:32]}  Nxb2 {[%clk 0:01:58]} 16. Bf4 {[%clk 0:01:31]}  Rxd3 {[%clk 0:01:50]} 17. cxd3 {[%clk 0:01:31]}  Nxd3 {[%clk 0:01:51]} 18. Be3 {[%clk 0:01:25]}  Bf6 {[%clk 0:01:40]} 19. Rd1 {[%clk 0:01:25]}  Bc4 {[%clk 0:01:34]} 20. Ne2 {[%clk 0:01:22]}  Kf8 {[%clk 0:01:27]} 21. Bxa7 {[%clk 0:01:16]}  c5 {[%clk 0:01:27]} 22. Nc1 {[%clk 0:01:13]}  Nf4 {[%clk 0:01:15]} 23. Bxc5+ {[%clk 0:01:10]}  Ke8 {[%clk 0:01:16]} 24. Bd4 {[%clk 0:01:07]}  Be7 {[%clk 0:01:03]} 25. Bxg7 {[%clk 0:01:04]}  Ba3 {[%clk 0:01:03]} 26. g3 {[%clk 0:00:56]}  Bxc1 {[%clk 0:01:01]} 27. gxf4 {[%clk 0:00:56]}  Bxf4 {[%clk 0:01:02]} 28. a3 {[%clk 0:00:51]}  Ke7 {[%clk 0:01:00]} 29. Bd4 {[%clk 0:00:48]}  Bd6 {[%clk 0:00:57]} 30. Rc1 {[%clk 0:00:43]}  Bd3 {[%clk 0:00:49]} 31. f3 {[%clk 0:00:33]}  b5 {[%clk 0:00:44]} 32. Bc5 {[%clk 0:00:32]}  Bc4 {[%clk 0:00:42]} 33. Bb4 {[%clk 0:00:30]}  Ke6 {[%clk 0:00:41]} 34. Bxd6 {[%clk 0:00:30]}  Kxd6 {[%clk 0:00:42]} 35. Kf2 {[%clk 0:00:31]}  Kc5 {[%clk 0:00:40]} 36. Ke3 {[%clk 0:00:31]}  Kb6 {[%clk 0:00:40]} 37. Kd4 {[%clk 0:00:31]}  Be6 {[%clk 0:00:40]} 38. Kc3 {[%clk 0:00:29]}  Ka5 {[%clk 0:00:40]} 39. Rg1 {[%clk 0:00:29]}  Ka4 {[%clk 0:00:40]} 40. Kb2 {[%clk 0:00:30]}  h5 {[%clk 0:00:37]} 41. Rg5 {[%clk 0:00:29]}  h4 {[%clk 0:00:37]} 42. Rh5 {[%clk 0:00:29]}  h3 {[%clk 0:00:37]} 43. f4 {[%clk 0:00:29]}  Bg4 {[%clk 0:00:31]} 44. Rh4 {[%clk 0:00:29]}  Bf3 {[%clk 0:00:31]} 45. f5 {[%clk 0:00:29]}  Bg2 {[%clk 0:00:27]} 46. e5+ {[%clk 0:00:29]}  b4 {[%clk 0:00:27]} 47. Rxb4+ {[%clk 0:00:28]}  Ka5 {[%clk 0:00:25]} 48. e6 {[%clk 0:00:29]} 1-0

[Event "January 9 Late 2024"]
[Site "https://www.chess.com"]
[Date "2024.01.09"]
[Round "5"]
[White "Pichot, Alan"]
[Black "Pasti, Aron"]
[Result "1-0"]
[Board "53"]
[TimeControl "180+1"]
[WhiteFideId "110973"]
[BlackFideId "785857"]
[WhiteElo "2844"]
[BlackElo "2563"]
[WhiteTeam "ESP"]
[BlackTeam "HUN"]
[WhiteClock "0:00:38"]
[BlackClock "0:00:58"]

1. Nf3 {[%clk 0:03:00]}  d5 {[%clk 0:03:00]} 2. b3 {[%clk 0:02:58]}  Nf6 {[%clk 0:02:59]} 3. Bb2 {[%clk 0:02:58]}  Bg4 {[%clk 0:02:59]} 4. e3 {[%clk 0:02:58]}  e6 {[%clk 0:02:59]} 5. h3 {[%clk 0:02:58]}  Bh5 {[%clk 0:02:59]} 6. g4 {[%clk 0:02:54]}  Bg6 {[%clk 0:02:59]} 7. Bg2 {[%clk 0:02:45]}  Nbd7 {[%clk 0:02:58]} 8. d3 {[%clk 0:02:44]}  Bd6 {[%clk 0:02:50]} 9. Nbd2 {[%clk 0:02:43]}  O-O {[%clk 0:02:46]} 10. Nh4 {[%clk 0:02:43]}  a5 {[%clk 0:02:44]} 11. a3 {[%clk 0:02:42]}  c5 {[%clk 0:02:38]} 12. g5 {[%clk 0:02:35]}  Nh5 {[%clk 0:02:29]} 13. Nxg6 {[%clk 0:02:22]}  hxg6 {[%clk 0:02:30]} 14. h4 {[%clk 0:02:23]}  f6 {[%clk 0:02:17]} 15. Qg4 {[%clk 0:02:17]}  f5 {[%clk 0:02:10]} 16. Qe2 {[%clk 0:02:17]}  f4 {[%clk 0:02:07]} 17. c4 {[%clk 0:01:33]}  fxe3 {[%clk 0:01:58]} 18. Qxe3 {[%clk 0:01:32]}  Nf4 {[%clk 0:01:58]} 19. Bh3 {[%clk 0:01:27]}  d4 {[%clk 0:01:53]} 20. Qe4 {[%clk 0:01:21]}  Ne5 {[%clk 0:01:52]} 21. Bf1 {[%clk 0:01:22]}  Ng4 {[%clk 0:01:42]} 22. Nf3 {[%clk 0:01:13]}  Rf5 {[%clk 0:01:33]} 23. Bh3 {[%clk 0:00:55]}  Ne5 {[%clk 0:01:24]} 24. Bxf5 {[%clk 0:00:53]}  exf5 {[%clk 0:01:18]} 25. Qxb7 {[%clk 0:00:48]}  Rb8 {[%clk 0:01:16]} 26. Qa7 {[%clk 0:00:43]}  Nxf3+ {[%clk 0:01:14]} 27. Kd1 {[%clk 0:00:43]}  Nxd3 {[%clk 0:01:13]} 28. Kc2 {[%clk 0:00:41]}  Nxf2 {[%clk 0:01:02]} 29. Rhf1 {[%clk 0:00:39]}  d3+ {[%clk 0:00:57]} 30. Kb1 {[%clk 0:00:39]}  Ne4 {[%clk 0:00:58]} 31. Qxg7# {[%clk 0:00:38]} 1-0

[Event "January 9 Late 2024"]
[Site "https://www.chess.com"]
[Date "2024.01.09"]
[Round "5"]
[White "Zarnicki, Pablo"]
[Black "Bryakin, Mikhail"]
[Result "0-1"]
[Board "54"]
[TimeControl "180+1"]
[WhiteFideId "100137"]
[BlackFideId "4165314"]
[WhiteElo "2553"]
[BlackElo "2836"]
[WhiteTeam "ARG"]
[BlackTeam "SRB"]
[WhiteClock "0:00:13"]
[BlackClock "0:00:05"]

1. e4 {[%clk 0:02:59]}  d6 {[%clk 0:02:43]} 2. d4 {[%clk 0:02:58]}  Nf6 {[%clk 0:02:41]} 3. Nc3 {[%clk 0:02:59]}  e5 {[%clk 0:02:26]} 4. Nf3 {[%clk 0:02:59]}  Nbd7 {[%clk 0:02:23]} 5. Bc4 {[%clk 0:02:59]}  Be7 {[%clk 0:02:17]} 6. O-O {[%clk 0:02:59]}  O-O {[%clk 0:02:17]} 7. Re1 {[%clk 0:02:59]}  c6 {[%clk 0:02:18]} 8. a4 {[%clk 0:03:00]}  Qc7 {[%clk 0:02:14]} 9. Ba2 {[%clk 0:02:58]}  h6 {[%clk 0:01:56]} 10. dxe5 {[%clk 0:02:54]}  dxe5 {[%clk 0:01:55]} 11. Nh4 {[%clk 0:02:52]}  Nc5 {[%clk 0:01:44]} 12. Qf3 {[%clk 0:02:28]}  Be6 {[%clk 0:01:38]} 13. Nf5 {[%clk 0:02:27]}  Bxf5 {[%clk 0:01:29]} 14. Qxf5 {[%clk 0:02:26]}  a5 {[%clk 0:01:20]} 15. Bxh6 {[%clk 0:01:35]}  gxh6 {[%clk 0:01:10]} 16. Qg6+ {[%clk 0:01:34]}  Kh8 {[%clk 0:01:10]} 17. Qxh6+ {[%clk 0:01:35]}  Nh7 {[%clk 0:01:10]} 18. Re3 {[%clk 0:01:35]}  Bg5 {[%clk 0:01:07]} 19. Qh5 {[%clk 0:01:29]}  Bxe3 {[%clk 0:01:05]} 20. fxe3 {[%clk 0:01:30]}  Qe7 {[%clk 0:01:03]} 21. h4 {[%clk 0:01:30]}  Ne6 {[%clk 0:00:56]} 22. Rf1 {[%clk 0:01:29]}  f6 {[%clk 0:00:51]} 23. Ne2 {[%clk 0:01:26]}  Rae8 {[%clk 0:00:47]} 24. Ng3 {[%clk 0:01:25]}  Qf7 {[%clk 0:00:48]} 25. Qf3 {[%clk 0:01:17]}  Rg8 {[%clk 0:00:45]} 26. Nf5 {[%clk 0:01:17]}  Qg6 {[%clk 0:00:40]} 27. Rf2 {[%clk 0:01:03]}  Nhf8 {[%clk 0:00:23]} 28. Nd6 {[%clk 0:00:37]}  Re7 {[%clk 0:00:23]} 29. Nf5 {[%clk 0:00:34]}  Rd7 {[%clk 0:00:22]} 30. Qe2 {[%clk 0:00:30]}  Qg4 {[%clk 0:00:21]} 31. Qc4 {[%clk 0:00:26]}  Rd1+ {[%clk 0:00:18]} 32. Kh2 {[%clk 0:00:26]}  Ra1 {[%clk 0:00:12]} 33. Bb3 {[%clk 0:00:24]}  Re1 {[%clk 0:00:10]} 34. Qd3 {[%clk 0:00:23]}  Rd1 {[%clk 0:00:09]} 35. Qc4 {[%clk 0:00:21]}  Re1 {[%clk 0:00:10]} 36. Qc3 {[%clk 0:00:22]}  Qd1 {[%clk 0:00:07]} 37. Ng3 {[%clk 0:00:18]}  Rg1 {[%clk 0:00:04]} 38. Rd2 {[%clk 0:00:14]}  Qe1 {[%clk 0:00:04]} 39. Rd6 {[%clk 0:00:13]}  Qxg3+ {[%clk 0:00:04]} 40. Kxg1 {[%clk 0:00:13]}  Qxg2# {[%clk 0:00:05]} 0-1